Workbook

Sheet ESTIMATE
C1: PROJECT: TENANT IMPROVEMENT FOR MARINATED MASALA MEATS | N1: Web: http://sigmaestimations.com Email: info@sigmaestimations.com
C3: LOCATION: 2450 N. BRAWLEY AVE #108 FRESNO, CA 93722
A5: ITEM # | B5: DWG # | C5: CSI #/SUB DETAIL | D5: DESCRIPTION | E5: QTY. | F5: WASTE | G5: QTY. W/ WASTE | H5: UNIT | I5: UNIT LABOR HOURS | J5: TOTAL LABOR HOURS | K5: PER HOUR LABOR RATE | L5: TOTAL LABOR COST | M5: UNIT MATERIAL COST | N5: TOTAL MATERIAL COST | O5: ITEM COST | P5: TRADE COST
C6: 010000 | D6: DIVISION 01 — GENERAL REQUIREMENTS
A7: =IF(H7<>"",1+MAX(A1:A6),"") -> 1 | D7: Submittal Procedures | E7: 1 | F7: 0% | G7: =E7+(E7*F7) -> 1 | H7: LS | I7: 0.00 | J7: =I7*G7 -> 0.00 | K7: $53.48 | L7: =K7*J7 -> 0 | M7: 0 | N7: =M7*G7 -> 0 | O7: =L7+N7 -> 0
A8: =IF(H8<>"",1+MAX(A2:A7),"") -> 2 | D8: Temporary Facilities and Controls | E8: 1 | F8: 0% | G8: 1 | H8: LS | I8: 0.00 | J8: 0.00 | K8: $53.48 | L8: 0 | M8: 0 | N8: 0 | O8: 0
A9: =IF(H9<>"",1+MAX(A3:A8),"") -> 3 | D9: Closeout Procedures | E9: 1 | F9: 0% | G9: 1 | H9: LS | I9: 0.00 | J9: 0.00 | K9: $53.48 | L9: 0 | M9: 0 | N9: 0 | O9: 0
A10: =IF(H10<>"",1+MAX(A4:A9),"") -> 4 | D10: Payment Procedures | E10: 1 | F10: 0% | G10: 1 | H10: LS | I10: 0.00 | J10: 0.00 | K10: $53.48 | L10: 0 | M10: 0 | N10: 0 | O10: 0
A11: =IF(H11<>"",1+MAX(A5:A10),"") -> 5 | D11: Contract Modification Procedures | E11: 1 | F11: 0% | G11: 1 | H11: LS | I11: 0.00 | J11: 0.00 | K11: $53.48 | L11: 0 | M11: 0 | N11: 0 | O11: 0
A12: =IF(H12<>"",1+MAX(A1:A11),"") -> 6 | D12: Maintenance & Traffic Protection | E12: 1 | F12: 0% | G12: 1 | H12: LS | I12: 0.00 | J12: 0.00 | K12: $53.48 | L12: 0 | M12: 0 | N12: 0 | O12: 0
A13: =IF(H13<>"",1+MAX(A3:A12),"") ->  | D13: SUBTOTAL | L13: =IF(H13<>"",0.4*N13,"") ->  | M13: =IF(H13<>"",N13-L13,"") ->  | P13: =SUM(O7:O12) -> 0
A14: =IF(H14<>"",1+MAX(A4:A13),"") ->  | C14: 020000 | D14: DIVISION 02 — EXISTING CONDITIONS | L14: =IF(H14<>"",0.4*N14,"") ->  | M14: =IF(H14<>"",N14-L14,"") -> 
A15: =IF(H15<>"",1+MAX(A5:A14),"") -> 
A16: =IF(H16<>"",1+MAX(A6:A15),"") ->  | D16: Selective Demolition
A17: =IF(H17<>"",1+MAX(A3:A16),"") -> 7 | B17: A1 | C17: A1 | D17: Remove existing floor finish | E17: 831 | F17: 5% | G17: =E17+(E17*F17) -> 873 | H17: SF | I17: 0.07 | J17: =I17*G17 -> 56.72 | K17: $53.48 | L17: =K17*J17 -> $3,033.34 | M17: 0 | N17: =M17*G17 -> 0 | O17: =L17+N17 -> $3,033
A18: =IF(H18<>"",1+MAX(A4:A17),"") -> 8 | B18: A1 | C18: A1 | D18: Remove existing floor tiles | E18: 58 | F18: 5% | G18: 61 | H18: SF | I18: 0.07 | J18: 4.24 | K18: $53.48 | L18: $226.92 | M18: 0 | N18: 0 | O18: $227
A19: 9 | B19: A1 | C19: A1 | D19: Remove existing wall base | E19: 160 | F19: 5% | G19: 168 | H19: LF | I19: 0.02 | J19: 3.58 | K19: $53.48 | L19: $191.32 | M19: 0 | N19: 0 | O19: $191
A20: 10 | B20: A1 | C20: A1 | D20: (5'-0" H) Remove existing wall tiles | E20: =27.12*5 -> 136 | F20: 5% | G20: 142 | H20: SF | I20: 0.07 | J20: 9.97 | K20: $53.48 | L20: $533.01 | M20: 0 | N20: 0 | O20: $533
A21: 11 | B21: A1 | C21: A1 | D21: Patch & prepare existing surface to receive new wall finish | E21: =30.45*4+184.8*9 -> 1785 | F21: 5% | G21: 1874 | H21: SF | I21: 0.09 | J21: =I21*G21 -> 164.00 | K21: $53.48 | L21: =K21*J21 -> $8,770.55 | M21: 0 | N21: =M21*G21 -> 0 | O21: =L21+N21 -> $8,771
A22: 12 | B22: A1 | C22: A1 | D22: Remove existing (2'-0" Deep) Base Cabinet | E22: 6 | F22: 5% | G22: 6 | H22: LF | I22: 0.30 | J22: =I22*G22 -> 1.91 | K22: $53.48 | L22: =K22*J22 -> $102.26 | M22: 0 | N22: =M22*G22 -> 0 | O22: =L22+N22 -> $102
A23: 13 | B23: A1 | C23: A1 | D23: Remove existing sink | E23: 2 | F23: 0% | G23: 2 | H23: EA | I23: 2.38 | J23: 4.75 | K23: $53.48 | L23: $254.03 | M23: 0 | N23: 0 | O23: $254
D25: Structure Demolition
A26: 14 | B26: P1 | C26: P1 | D26: Remove existing concrete slab including base course | E26: =(178-21)*1.5 -> 236 | F26: 5% | G26: =E26+(E26*F26) -> 247 | H26: SF | I26: 0.07 | J26: =I26*G26 -> 17.31 | K26: $53.48 | L26: =K26*J26 -> $925.70 | M26: 0 | N26: =M26*G26 -> 0 | O26: =L26+N26 -> $926
A27: 15 | B27: P1 | C27: P1 | D27: Sawcut existing concrete slab | E27: =(178-21)*2 -> 314 | F27: 5% | G27: =E27+(E27*F27) -> 330 | H27: LF | I27: 0.11 | J27: =I27*G27 -> 37.09 | K27: $53.48 | L27: =K27*J27 -> $1,983.64 | M27: 0 | N27: =M27*G27 -> 0 | O27: =L27+N27 -> $1,984
D29: Hauling
A30: 16 | B30: P1 | C30: P1 | D30: Haul off Demo Building Material Offsite | E30: 15 | F30: 5% | G30: =E30+(E30*F30) -> 16 | H30: CY | I30: 0.88 | J30: =I30*G30 -> 13.86 | K30: $53.48 | L30: =K30*J30 -> $741.05 | M30: 0 | N30: =M30*G30 -> 0 | O30: =L30+N30 -> $741
D32: SUBTOTAL | L32: =IF(H32<>"",I32*K32,"") ->  | P32: =SUM(O15:O31) -> $16,762
C33: 030000 | D33: DIVISION 03 — CONCRETE | L33: =IF(H33<>"",0.4*N33,"") -> 
D35: Concrete Slab
A36: 17 | B36: P1 | C36: P1 | D36: (4" Thk) Concrete Slab | E36: =(178-21)*1.5 -> 236 | F36: 5% | G36: =E36+(E36*F36) -> 247 | H36: SF | I36: 0.05 | J36: =I36*G36 -> 11.13 | K36: $53.48 | L36: =K36*J36 -> $595.09 | M36: $2.70 | N36: =M36*G36 -> $667.64 | O36: =L36+N36 -> $1,263
A37: 18 | B37: P1 | C37: P1 | D37: (4" Thk) Aggregate Base Course | E37: =((178-21)*1.5)*0.33/27 -> 3 | F37: 5% | G37: =E37+(E37*F37) -> 3 | H37: CY | I37: 0.30 | J37: =I37*G37 -> 0.91 | K37: $53.48 | L37: =K37*J37 -> $48.49 | M37: $18.00 | N37: =M37*G37 -> $54.40 | O37: =L37+N37 -> $103
A38: 19 | B38: P1 | C38: P1 | D38: 6x6 - W1.4xW1.4 WWF | E38: =(178-21)*1.5 -> 236 | F38: 5% | G38: =E38+(E38*F38) -> 247 | H38: SF | I38: 0.02 | J38: =I38*G38 -> 5.44 | K38: $53.48 | L38: =K38*J38 -> $290.93 | M38: $1.32 | N38: =M38*G38 -> $326.40 | O38: =L38+N38 -> $617
D40: Vapor Retarder
A41: 20 | B41: P1 | C41: P1 | D41: 6Mil. Vapor Retarder @ Concrete Slab | E41: =(178-21)*1.5 -> 236 | F41: 5% | G41: =E41+(E41*F41) -> 247 | H41: SF | I41: 0.02 | J41: =I41*G41 -> 4.95 | K41: $53.48 | L41: =K41*J41 -> $264.49 | M41: $1.20 | N41: =M41*G41 -> $296.73 | O41: =L41+N41 -> $561
D43: Formwork
A44: 21 | B44: P1 | C44: P1 | D44: Formwork for Concrete Slab | E44: =(160*2)*0.33 -> 106 | F44: 5% | G44: =E44+(E44*F44) -> 111 | H44: SF | I44: 0.05 | J44: =I44*G44 -> 5.54 | K44: $53.48 | L44: =K44*J44 -> $296.49 | M44: $3.00 | N44: =M44*G44 -> $332.64 | O44: =L44+N44 -> $629
D46: Misc.
A47: 22 | B47: P1 | C47: P1 | D47: Hilti Epoxy #3 Dowel Bars (1'-0" Long) - Embed 6" into Existing Slab | E47: =((160*2)/1)*1*0.376 -> 120 | F47: 5% | G47: =E47+(E47*F47) -> 126 | H47: LBS | I47: 0.02 | J47: =I47*G47 -> 2.27 | K47: $53.48 | L47: =K47*J47 -> $121.62 | M47: $1.08 | N47: =M47*G47 -> $136.44 | O47: =L47+N47 -> $258
D49: Mobilization
A50: 23 | B50: P1 | C50: P1 | D50: Mobilization for Steel/Reinforcement | E50: =(120/2000) -> 0.1 | F50: 5% | G50: =E50+(E50*F50) -> 0.1 | H50: TONS | I50: 18.75 | J50: =I50*G50 -> 1.18 | K50: $53.48 | L50: =K50*J50 -> $63.17 | M50: 0 | N50: =M50*G50 -> 0 | O50: =L50+N50 -> $63
D52: SUBTOTAL | L52: =IF(H52<>"",I52*K52,"") ->  | P52: =SUM(O34:O51) -> $3,495
C53: 060000 | D53: DIVISION 06 — WOOD, PLASTIC & COMPOSITES | L53: =IF(H53<>"",0.4*N53,"") -> 
D55: Trim
A56: 24 | B56: A4 | C56: A4 | D56: Door Trim | E56: =(17*2) -> 34 | F56: 5% | G56: =E56+(E56*F56) -> 36 | H56: LF | I56: 0.03 | J56: =I56*G56 -> 0.89 | K56: $53.48 | L56: =K56*J56 -> $47.73 | M56: $1.50 | N56: =M56*G56 -> $53.55 | O56: =L56+N56 -> $101
D58: SUBTOTAL | L58: =IF(H58<>"",I58*K58,"") ->  | P58: =SUM(O54:O57) -> $101
C59: 080000 | D59: DIVISION 08 — OPENINGS | L59: =IF(H59<>"",0.4*N59,"") -> 
D61: Doors
A62: 25 | B62: A4 | C62: A4 | D62: 101 - (3'-0"x3'-0") Solid Core Wood Door w/ Wood Frame | E62: 1 | F62: 0% | G62: =E62+(E62*F62) -> 1 | H62: EA | I62: 1.86 | J62: =I62*G62 -> 1.86 | K62: $53.48 | L62: =K62*J62 -> $99.27 | M62: $420.75 | N62: =M62*G62 -> $420.75 | O62: =L62+N62 -> $520
A63: 26 | B63: A4 | C63: A4 | D63: 102 - (3'-0"x7'-0") Solid Core Wood Door w/ Wood Frame | E63: 1 | F63: 0% | G63: =E63+(E63*F63) -> 1 | H63: EA | I63: 3.26 | J63: 3.26 | K63: $53.48 | L63: $174.48 | M63: $739.50 | N63: $739.50 | O63: $914
D65: Door Hardware
A66: 27 | B66: A4 | C66: A4 | D66: Hardware Set 4 - (2) PR Butts: Hager, BB1279 4-1/2" x 4-1/2" x US26D - (1) Office Lock: Schlage, Neptune AL50PD x 626 - (1) Wall Stop: Hager, 234W, 626 | E66: 2 | F66: 0% | G66: =E66+(E66*F66) -> 2 | H66: EA | I66: 1.41 | J66: 2.81 | K66: $53.48 | L66: $150.41 | M66: $318.75 | N66: $637.50 | O66: $788
D68: SUBTOTAL | L68: =IF(H68<>"",I68*K68,"") ->  | P68: =SUM(O60:O67) -> $2,222
C69: 090000 | D69: DIVISION 09 — FINISHES | L69: =IF(H69<>"",0.4*N69,"") -> 
D71: Stud Walls
D73: Note: Deck Height is Assumed to be 12'. Please verify.
A75: 28 | D75: 2x4 Wood Stud Interior Wall, (12'-0" H) | E75: 14 | F75: 5% | G75: =E75+(E75*F75) -> 15 | H75: LF
A76: 29 | B76: A1 | C76: A1 | D76: 5/8" Gypsum Board on Both Sides - 4'x8' | E76: =(E75*9.5*2)/32 -> 8 | F76: 0% | G76: 8 | H76: EA | I76: 0.38 | J76: =I76*G76 -> 3.19 | K76: $53.48 | L76: =K76*J76 -> $170.71 | M76: $23.04 | N76: =M76*G76 -> $191.52 | O76: =L76+N76 -> $362
A77: 30 | B77: A1 | C77: A1 | D77: 2x4 DF#2 Wood Studs @ 16" O.C. (12'-0" H) | E77: =(E75/1.33)+2 -> 13 | F77: 0% | G77: 13 | H77: EA | I77: 0.31 | J77: =I77*G77 -> 3.91 | K77: $53.48 | L77: =K77*J77 -> $209.01 | M77: $18.72 | N77: =M77*G77 -> $234.49 | O77: =L77+N77 -> $444
A78: 31 | B78: A1 | C78: A1 | D78: 2x4 Single P.T. Sill Plate | E78: =E75 -> 14 | F78: 5% | G78: 15 | H78: LF | I78: 0.03 | J78: =I78*G78 -> 0.41 | K78: $53.48 | L78: =K78*J78 -> $22.01 | M78: $1.68 | N78: =M78*G78 -> $24.70 | O78: =L78+N78 -> $47
A79: 32 | B79: A1 | C79: A1 | D79: 2x4 Double Top Plate | E79: =E75*2 -> 28 | F79: 5% | G79: 29 | H79: LF | I79: 0.03 | J79: 0.76 | K79: $53.48 | L79: $40.88 | M79: $1.56 | N79: $45.86 | O79: $87
A80: 33 | B80: A1 | C80: A1 | D80: Acoustical Sealant on Both Sides @ Top & Bottom | E80: =E75*4 -> 56 | F80: 5% | G80: 59 | H80: LF | I80: 0.01 | J80: =I80*G80 -> 0.59 | K80: $53.48 | L80: =K80*J80 -> $31.45 | M80: $0.60 | N80: =M80*G80 -> $35.28 | O80: =L80+N80 -> $67
A82: =IF(H82<>"",1+MAX(A68:A81),"") ->  | D82: Floor Tiles
A83: 34 | B83: A1 | C83: A1 | D83: Ceramic Tile | E83: 272 | F83: 5% | G83: =E83+(E83*F83) -> 285 | H83: SF | I83: 0.09 | J83: =I83*G83 -> 24.96 | K83: $53.48 | L83: =K83*J83 -> $1,335.09 | M83: $8.50 | N83: =M83*G83 -> $2,425.10 | O83: =L83+N83 -> $3,760
A84: 35 | B84: A1 | C84: A1 | D84: Red Quarry Tile | E84: 614 | F84: 5% | G84: =E84+(E84*F84) -> 644 | H84: SF | I84: 0.09 | J84: 56.37 | K84: $53.48 | L84: $3,014.91 | M84: $8.25 | N84: $5,315.31 | O84: $8,330
D86: Floor Transition Strip
A87: 36 | B87: A1 | C87: A4 | D87: Aluminum Bar Floor Transition Strip | E87: 9 | F87: 5% | G87: =E87+(E87*F87) -> 9 | H87: LF | I87: 0.04 | J87: 0.33 | K87: $53.48 | L87: $17.71 | M87: $2.10 | N87: $19.87 | O87: $38
D89: Wall Base
A90: 37 | B90: A1 | C90: A1 | D90: Coved Ceramic Tile Base | E90: 85 | F90: 5% | G90: =E90+(E90*F90) -> 89 | H90: LF | I90: 0.03 | J90: 2.51 | K90: $53.48 | L90: $133.98 | M90: $1.68 | N90: $150.31 | O90: $284
A91: 38 | B91: A1 | C91: A1 | D91: Coved Quarry Tile Base | E91: 123 | F91: 5% | G91: =E91+(E91*F91) -> 129 | H91: LF | I91: 0.03 | J91: 3.42 | K91: $53.48 | L91: $182.90 | M91: $1.59 | N91: $205.20 | O91: $388
D93: Wall Panels
A94: 39 | B94: A1 | C94: A1 | D94: Fiberglass Reinforced Plastic (FRP) Panel Manufacturer: Marlite Color: White | E94: =(16.71*2)+(137.35*9) -> 1270 | F94: 5% | G94: =E94+(E94*F94) -> 1333 | H94: SF | I94: 0.05 | J94: =I94*G94 -> 59.99 | K94: $53.48 | L94: =K94*J94 -> $3,208.11 | M94: $2.70 | N94: =M94*G94 -> $3,599.23 | O94: =L94+N94 -> $6,807
D96: Paint
D98: Note: One primer coat & two finish coats are assumed, unless otherwise noted.
A100: 40 | B100: A1 | C100: A1 | D100: (9'-0" H) Wall Paint Finish: Washable Gloss Color: White | E100: =85.35*9 -> 768 | F100: 5% | G100: =E100+(E100*F100) -> 807 | H100: SF | I100: 0.01 | J100: 10.89 | K100: $53.48 | L100: $582.32 | M100: $0.81 | N100: $653.31 | O100: $1,236
A101: 41 | B101: A3 | C101: A1 | D101: Gypsum Board Ceiling Paint Finish: Semi-Gloss Color: White | E101: 105 | F101: 5% | G101: =E101+(E101*F101) -> 111 | H101: SF | I101: 0.02 | J101: 1.82 | K101: $53.48 | L101: $97.51 | M101: $0.99 | N101: $109.40 | O101: $207
A102: 42 | B102: A4 | C102: A4 | D102: Paint on (3'-0"x3'-0") Solid Core Wood Door w/ Wood Frame | E102: 1 | F102: 0% | G102: =E102+(E102*F102) -> 1 | H102: EA | I102: 0.54 | J102: 0.54 | K102: $53.48 | L102: $28.88 | M102: $32.40 | N102: $32.40 | O102: $61
A103: 43 | B103: A4 | C103: A4 | D103: Paint on (3'-0"x7'-0") Solid Core Wood Door w/ Wood Frame | E103: 1 | F103: 0% | G103: =E103+(E103*F103) -> 1 | H103: EA | I103: 0.84 | J103: 0.84 | K103: $53.48 | L103: $44.92 | M103: $50.40 | N103: $50.40 | O103: $95
A104: 44 | B104: A4 | C104: A4 | D104: Door Trim Paint | E104: =(17*2) -> 34 | F104: 5% | G104: =E104+(E104*F104) -> 36 | H104: LF | I104: 0.01 | J104: =I104*G104 -> 0.39 | K104: $53.48 | L104: =K104*J104 -> $21.00 | M104: $0.66 | N104: =M104*G104 -> $23.56 | O104: =L104+N104 -> $45
D106: SUBTOTAL | L106: =IF(H106<>"",I106*K106,"") ->  | P106: =SUM(O70:O105) -> $22,257
C107: 100000 | D107: DIVISION 10 — SPECIALTIES | L107: =IF(H107<>"",0.4*N107,"") -> 
D109: Shelving
A110: 45 | B110: A1 | C110: A1 | D110: (1'-0" Deep) Wall Shelf | E110: 8 | F110: 5% | G110: =E110+(E110*F110) -> 8 | H110: LF | I110: 0.94 | J110: =I110*G110 -> 7.83 | K110: $53.48 | L110: =K110*J110 -> $418.52 | M110: $87.50 | N110: =M110*G110 -> $730.41 | O110: =L110+N110 -> $1,149
A111: 46 | B111: A1 | C111: A1 | D111: (1'-2" Deep) Wall Shelf | E111: 8 | F111: 5% | G111: 8 | H111: LF | I111: 0.99 | J111: 7.80 | K111: $53.48 | L111: $416.94 | M111: $92.40 | N111: $727.65 | O111: $1,145
A112: 47 | B112: A1 | C112: A1 | D112: (1'-2" Deep) Storage Shelving | E112: 3 | F112: 5% | G112: 3 | H112: LF | I112: 0.99 | J112: 3.16 | K112: $53.48 | L112: $169.00 | M112: $92.40 | N112: $294.94 | O112: $464
A113: 48 | B113: A1 | C113: A1 | D113: (1'-4" Deep) Storage Shelving | E113: 32 | F113: 5% | G113: 33 | H113: LF | I113: 1.06 | J113: 35.42 | K113: $53.48 | L113: $1,894.10 | M113: $99.16 | N113: $3,305.58 | O113: $5,200
A114: 49 | B114: A1 | C114: A1 | D114: (1'-8" Deep) Storage Shelving | E114: 7 | F114: 5% | G114: 8 | H114: LF | I114: 1.27 | J114: 9.52 | K114: $53.48 | L114: $509.36 | M114: $118.08 | N114: $888.94 | O114: $1,398
D116: Lockers
A117: 50 | B117: A2 | C117: A2 | D117: 6 Tier Employee Locker - Unassembled Manufacturer: Regency Space Solutions Model: #600LC16122KG Color: Gray Size: 12"x12"x78" | E117: 1 | F117: 0% | G117: 1 | H117: EA | I117: 1.16 | J117: 1.16 | K117: $53.48 | L117: $61.84 | M117: $185.00 | N117: $185.00 | O117: $247
D119: Toilet Accessories
A120: 51 | B120: A1, A2 | C120: A2 | D120: Stainless Steel Soap Dispenser Manufacturer: Bobrick Model: B-2111 | E120: 3 | F120: 0% | G120: =E120+(E120*F120) -> 3 | H120: EA | I120: 0.29 | J120: =I120*G120 -> 0.87 | K120: $53.48 | L120: =K120*J120 -> $46.63 | M120: $65.88 | N120: =M120*G120 -> $197.63 | O120: =L120+N120 -> $244
A121: 52 | B121: A1, A2 | C121: A2 | D121: Stainless Steel Paper Towel Dispenser Manufacturer: Bobrick Model: B-2974 | E121: 3 | F121: 0% | G121: 3 | H121: EA | I121: 2.03 | J121: 6.08 | K121: $53.48 | L121: $325.03 | M121: $459.20 | N121: $1,377.60 | O121: $1,703
D123: Signage
A124: 53 | B124: A1 | C124: A1 | D124: (30"x1-1/2") "Door Unlocked" Tactile Sign | E124: 1 | F124: 0% | G124: =E124+(E124*F124) -> 1 | H124: EA | I124: 0.45 | J124: =I124*G124 -> 0.45 | K124: $53.48 | L124: =K124*J124 -> $24.19 | M124: $102.54 | N124: =M124*G124 -> $102.54 | O124: =L124+N124 -> $127
A125: 54 | B125: A1 | C125: A1 | D125: (7"x10") "No Smoking" Tactile Sign Note: Size Assumed. | E125: 1 | F125: 0% | G125: 1 | H125: EA | I125: 0.31 | J125: 0.31 | K125: $53.48 | L125: $16.48 | M125: $69.84 | N125: $69.84 | O125: $86
A126: 55 | B126: A1 | C126: A1 | D126: (6"x6") "Handicap Logo ISA" Tactile Sign | E126: 1 | F126: 0% | G126: =E126+(E126*F126) -> 1 | H126: EA | I126: 0.27 | J126: =I126*G126 -> 0.27 | K126: $53.48 | L126: =K126*J126 -> $14.47 | M126: $61.34 | N126: =M126*G126 -> $61.34 | O126: =L126+N126 -> $76
D128: Misc.
A129: 56 | B129: A1 | C129: A1 | D129: Fire Extinguisher Class 2A:10B:C | E129: 3 | F129: 0% | G129: 3 | H129: EA | I129: 0.94 | J129: 2.81 | K129: $53.48 | L129: $150.41 | M129: $212.50 | N129: $637.50 | O129: $788
D131: SUBTOTAL | L131: =IF(H131<>"",I131*K131,"") ->  | P131: =SUM(O108:O130) -> $12,626
C132: 110000 | D132: DIVISION 11 — EQUIPMENT | L132: =IF(H132<>"",0.4*N132,"") -> 
D134: Appliances
A135: 57 | B135: A2 | C135: A2 | D135: 60" Worktop Refrigerator Manufacturer: Avantco Model: AWT-60R-HC | E135: 1 | F135: 0% | G135: =E135+(E135*F135) -> 1 | H135: EA | I135: 9.35 | J135: =I135*G135 -> 9.35 | K135: $53.48 | L135: =K135*J135 -> $499.96 | M135: $2,119.00 | N135: =M135*G135 -> $2,119.00 | O135: =L135+N135 -> $2,619
A136: 58 | B136: A2 | C136: A2 | D136: Commercial Two Door Reach-in Refrigerator Manufacturer: Kratos Model: 69K-773 | E136: 2 | F136: 0% | G136: 2 | H136: EA | I136: 10.14 | J136: 20.29 | K136: $53.48 | L136: $1,084.86 | M136: $2,299.00 | N136: $4,598.00 | O136: $5,683
A137: 59 | B137: A2 | C137: A2 | D137: Single Commercial Electric Convection Oven | E137: 1 | F137: 0% | G137: 1 | H137: EA | I137: 11.47 | J137: 11.47 | K137: $53.48 | L137: $613.45 | M137: $2,600.00 | N137: $2,600.00 | O137: $3,213
A138: 60 | B138: A2 | C138: A2 | D138: 71" 3 Door Refrigerated Sandwich Prep Table Manufacturer: Avantco Model: APT-71-HC Note: Added on the basis of equipment schedule. Not seen on plans. Please verify. | E138: 1 | F138: 0% | G138: 1 | H138: EA | I138: 8.78 | J138: 8.78 | K138: $53.48 | L138: $469.52 | M138: $1,990.00 | N138: $1,990.00 | O138: $2,460
D140: Equipment
A141: 61 | B141: A2 | C141: A2 | D141: Commercial 72" Stainless Steel Work Table Manufacturer: Chef AAA Model: TL3243 | E141: 1 | F141: 0% | G141: 1 | H141: EA | I141: 0.72 | J141: 0.72 | K141: $53.48 | L141: $38.61 | M141: $259.90 | N141: $259.90 | O141: $299
A142: 62 | B142: A2 | C142: A2 | D142: Commercial 30" Stainless Steel Work Table Manufacturer: Chef AAA Model: TL3243 | E142: 1 | F142: 0% | G142: 1 | H142: EA | I142: 0.78 | J142: 0.78 | K142: $53.48 | L142: $41.74 | M142: $281.00 | N142: $281.00 | O142: $323
A143: 63 | B143: A2 | C143: A2 | D143: 100-1/2" Full Service Red Meat Case w/ Straight Glass - (4) Levels Manufacturer: Howard McCray Model: SC-CMS40E-8-BE-LED | E143: 2 | F143: 0% | G143: 2 | H143: EA | I143: 11.47 | J143: 22.94 | K143: $53.48 | L143: $1,226.73 | M143: $8,716.50 | N143: $17,433.00 | O143: $18,660
D145: SUBTOTAL | L145: =IF(H145<>"",I145*K145,"") ->  | P145: =SUM(O133:O144) -> $33,256
A146: =IF(H146<>"",1+MAX(A132:A145),"") ->  | C146: 120000 | D146: DIVISION 12 — FURNISHINGS | L146: =IF(H146<>"",0.4*N146,"") -> 
D148: Millwork
A149: 64 | B149: A1 | C149: A1 | D149: (1'-5" D x 2'-10" H) Plastic Laminate Base Cabinet | E149: 8 | F149: 5% | G149: =E149+(E149*F149) -> 8 | H149: LF | I149: 1.46 | J149: =I149*G149 -> 12.22 | K149: $53.48 | L149: =K149*J149 -> $653.63 | M149: $135.80 | N149: =M149*G149 -> $1,140.72 | O149: =L149+N149 -> $1,794
D151: Countertops
A152: 65 | B152: A1 | C152: A1 | D152: (1'-5" D) Solid Surface Countertop | E152: 8 | F152: 5% | G152: 8 | H152: LF | I152: 0.54 | J152: 4.50 | K152: $53.48 | L152: $240.90 | M152: $32.18 | N152: $270.27 | O152: $511
D154: Misc.
A155: 66 | B155: A1 | C155: A1 | D155: Trash Receptacle | E155: 1 | F155: 0% | G155: 1 | H155: EA | I155: 1.00 | J155: 1.00 | K155: $53.48 | L155: $53.48 | M155: $160.00 | N155: $160.00 | O155: $213
D157: SUBTOTAL | L157: =IF(H157<>"",I157*K157,"") ->  | P157: =SUM(O147:O156) -> $2,519
C158: 220000 | D158: DIVISION 22 — PLUMBING | L158: =IF(H158<>"",0.4*N158,"") -> 
D160: Water Work | L160: =IF(H160<>"",I160*K160,"") -> 
D162: Water Pipes
D164: Note: Pipe Material is Assumed as Copper Type L
A166: 67 | B166: P1 | C166: P1 | D166: (1/2" Dia.) Hot Water Pipe | E166: 62 | F166: 5% | G166: =E166+(E166*F166) -> 65 | H166: LF | I166: 0.15 | J166: =I166*G166 -> 9.80 | K166: $53.48 | L166: =K166*J166 -> $524.25 | M166: $14.85 | N166: =M166*G166 -> $970.48 | O166: =L166+N166 -> $1,495
A167: 68 | B167: P1 | C167: P1 | D167: (3/4" Dia.) Hot Water Pipe | E167: 15 | F167: 5% | G167: =E167+(E167*F167) -> 16 | H167: LF | I167: 0.18 | J167: 2.84 | K167: $53.48 | L167: $152.02 | M167: $17.82 | N167: $281.41 | O167: $433
A168: 69 | B168: P1 | C168: P1 | D168: (1" Dia.) Hot Water Pipe | E168: 26 | F168: 5% | G168: =E168+(E168*F168) -> 27 | H168: LF | I168: 0.22 | J168: 6.04 | K168: $53.48 | L168: $322.81 | M168: $21.78 | N168: $597.57 | O168: $920
A170: 70 | B170: P1 | C170: P1 | D170: (1/2" Dia.) Cold Water Pipe U.G. | E170: 36 | F170: 5% | G170: =E170+(E170*F170) -> 38 | H170: LF | I170: 0.15 | J170: =I170*G170 -> 5.64 | K170: $53.48 | L170: =K170*J170 -> $301.63 | M170: $14.85 | N170: =M170*G170 -> $558.37 | O170: =L170+N170 -> $860
A171: 71 | B171: P1 | C171: P1 | D171: (1/2" Dia.) Cold Water Pipe | E171: 85 | F171: 5% | G171: =E171+(E171*F171) -> 89 | H171: LF | I171: 0.15 | J171: =I171*G171 -> 13.40 | K171: $53.48 | L171: =K171*J171 -> $716.38 | M171: $14.85 | N171: =M171*G171 -> $1,326.14 | O171: =L171+N171 -> $2,043
A172: 72 | B172: P1 | C172: P1 | D172: (3/4" Dia.) Cold Water Pipe | E172: 25 | F172: 5% | G172: =E172+(E172*F172) -> 26 | H172: LF | I172: 0.18 | J172: 4.75 | K172: $53.48 | L172: $253.80 | M172: $17.82 | N172: $469.83 | O172: $724
A173: 73 | B173: P1 | C173: P1 | D173: (1" Dia.) Cold Water Pipe | E173: 46 | F173: 5% | G173: =E173+(E173*F173) -> 48 | H173: LF | I173: 0.22 | J173: =I173*G173 -> 10.60 | K173: $53.48 | L173: =K173*J173 -> $566.92 | M173: $21.78 | N173: =M173*G173 -> $1,049.46 | O173: =L173+N173 -> $1,616
A175: 74 | B175: P1 | C175: P1 | D175: (1" Thick) Fiber Glass Insulation for Water Pipes Note: Material Assumed. | E175: 295 | F175: 5% | G175: =E175+(E175*F175) -> 310 | H175: LF | I175: 0.04 | J175: 10.84 | K175: $53.48 | L175: $579.79 | M175: $3.47 | N175: $1,073.28 | O175: $1,653
D177: Valves
A178: 75 | B178: P1 | C178: P1 | D178: (3/4" Dia.) Temperature and Pressure Relief Valve | E178: 1 | F178: 0% | G178: =E178+(E178*F178) -> 1 | H178: EA | I178: 0.83 | J178: =I178*G178 -> 0.83 | K178: $53.48 | L178: =K178*J178 -> $44.12 | M178: $217.80 | N178: =M178*G178 -> $217.80 | O178: =L178+N178 -> $262
A179: 76 | B179: P1 | C179: P1 | D179: (1" Dia.) Check Valve | E179: 2 | F179: 0% | G179: =E179+(E179*F179) -> 2 | H179: EA | I179: 0.63 | J179: =I179*G179 -> 1.25 | K179: $53.48 | L179: =K179*J179 -> $66.85 | M179: $165.00 | N179: =M179*G179 -> $330.00 | O179: =L179+N179 -> $397
A180: 77 | B180: P1 | C180: P1 | D180: (1" Dia.) Gate Valve | E180: 4 | F180: 0% | G180: 4 | H180: EA | I180: 0.74 | J180: 2.97 | K180: $53.48 | L180: $159.00 | M180: $196.22 | N180: $784.87 | O180: $944
A181: 78 | B181: P1 | C181: P1 | D181: (1" Dia.) Shut-off Valve | E181: 1 | F181: 0% | G181: 1 | H181: EA | I181: 0.58 | J181: 0.58 | K181: $53.48 | L181: $30.75 | M181: $151.80 | N181: $151.80 | O181: $183
A182: 79 | B182: P1 | C182: P1 | D182: (1" Dia.) Thermostatic Mixing Valve | E182: 1 | F182: 0% | G182: 1 | H182: EA | I182: 0.83 | J182: 0.83 | K182: $53.48 | L182: $44.12 | M182: $217.80 | N182: $217.80 | O182: $262
A183: 80 | B183: P1 | C183: P1 | D183: (1" Dia.) Vacuum Relief Valve | E183: 1 | F183: 0% | G183: 1 | H183: EA | I183: 0.71 | J183: 0.71 | K183: $53.48 | L183: $38.15 | M183: $188.31 | N183: $188.31 | O183: $226
D185: Sanitary Work | L185: =IF(H185<>"",I185*K185,"") -> 
D187: Note: Pipe Material is Assumed as PVC Schedule 40
D189: Waste Pipe
A190: 81 | B190: P1 | C190: P1 | D190: (2" Dia.) Waste Pipe U.G. | E190: 53 | F190: 5% | G190: =E190+(E190*F190) -> 56 | H190: LF | I190: 0.17 | J190: =I190*G190 -> 9.33 | K190: $53.48 | L190: =K190*J190 -> $499.15 | M190: $16.63 | N190: =M190*G190 -> $924.00 | O190: =L190+N190 -> $1,423
A191: 82 | B191: P1 | C191: P1 | D191: (4" Dia.) Waste Pipe U.G. | E191: 90 | F191: 5% | G191: 94 | H191: LF | I191: 0.29 | J191: =I191*G191 -> 27.07 | K191: $53.48 | L191: =K191*J191 -> $1,447.59 | M191: $28.51 | N191: =M191*G191 -> $2,679.71 | O191: =L191+N191 -> $4,127
A193: 83 | B193: P1 | C193: P1 | D193: (2" Dia.) Waste Pipe | E193: 24 | F193: 5% | G193: 26 | H193: LF | I193: 0.17 | J193: =I193*G193 -> 4.31 | K193: $53.48 | L193: =K193*J193 -> $230.66 | M193: $16.63 | N193: =M193*G193 -> $426.99 | O193: =L193+N193 -> $658
A194: 84 | B194: P1 | C194: P1 | D194: (4" Dia.) Waste Pipe | E194: 6 | F194: 5% | G194: 7 | H194: LF | I194: 0.29 | J194: =I194*G194 -> 1.93 | K194: $53.48 | L194: =K194*J194 -> $103.34 | M194: $28.51 | N194: =M194*G194 -> $191.30 | O194: =L194+N194 -> $295
A196: 85 | B196: P1 | C196: P1 | D196: (1-1/2" Dia.) Vent Pipe | E196: 47 | F196: 5% | G196: 49 | H196: LF | I196: 0.13 | J196: =I196*G196 -> 6.45 | K196: $53.48 | L196: =K196*J196 -> $344.97 | M196: $13.07 | N196: =M196*G196 -> $638.59 | O196: =L196+N196 -> $984
A197: 86 | B197: P1 | C197: P1 | D197: (2" Dia.) Vent Pipe | E197: 25 | F197: 5% | G197: 26 | H197: LF | I197: 0.17 | J197: =I197*G197 -> 4.42 | K197: $53.48 | L197: =K197*J197 -> $236.22 | M197: $16.63 | N197: =M197*G197 -> $437.29 | O197: =L197+N197 -> $674
A198: 87 | B198: P1 | C198: P1 | D198: (3" Dia.) Vent Pipe | E198: 20 | F198: 5% | G198: 21 | H198: LF | I198: 0.25 | J198: =I198*G198 -> 5.18 | K198: $53.48 | L198: =K198*J198 -> $276.93 | M198: $24.95 | N198: =M198*G198 -> $512.64 | O198: =L198+N198 -> $790
D200: Misc.
A201: 88 | B201: P1 | C201: P1 | D201: (4" Dia.) Floor Clean Out (FCO) | E201: 6 | F201: 0% | G201: =E201+(E201*F201) -> 6 | H201: EA | I201: 0.66 | J201: =I201*G201 -> 3.98 | K201: $53.48 | L201: =K201*J201 -> $212.84 | M201: $175.11 | N201: =M201*G201 -> $1,050.65 | O201: =L201+N201 -> $1,263
A202: 89 | B202: P1 | C202: P1 | D202: Round Frame W/ Smooth Top for (4" Dia.) Floor Clean Out (FCO) | E202: 6 | F202: 0% | G202: 6 | H202: EA | I202: 0.23 | J202: =I202*G202 -> 1.37 | K202: $53.48 | L202: =K202*J202 -> $73.25 | M202: $60.27 | N202: =M202*G202 -> $361.61 | O202: =L202+N202 -> $435
A203: 90 | B203: P1 | C203: P1 | D203: Cover for (4" Dia.) Floor Clean Out (FCO) | E203: 6 | F203: 0% | G203: =E203+(E203*F203) -> 6 | H203: EA | I203: 0.19 | J203: =I203*G203 -> 1.16 | K203: $53.48 | L203: =K203*J203 -> $61.90 | M203: $50.93 | N203: =M203*G203 -> $305.55 | O203: =L203+N203 -> $367
A204: 91 | B204: P1 | C204: P1 | D204: Hub Outlet for (4" Dia.) Floor Clean Out (FCO) | E204: 6 | F204: 0% | G204: =E204+(E204*F204) -> 6 | H204: EA | I204: 0.18 | J204: =I204*G204 -> 1.07 | K204: $53.48 | L204: =K204*J204 -> $57.20 | M204: $47.06 | N204: =M204*G204 -> $282.36 | O204: =L204+N204 -> $340
A205: 92 | B205: P1 | C205: P1 | D205: Point of Connection from New to Existing Pipe (POC) | E205: 2 | F205: 0% | G205: 2 | H205: EA | I205: 0.23 | J205: =I205*G205 -> 0.45 | K205: $53.48 | L205: =K205*J205 -> $24.07 | M205: $59.40 | N205: =M205*G205 -> $118.80 | O205: =L205+N205 -> $143
A206: 93 | B206: P1 | C206: P1 | D206: Sample Station No Details Found. | E206: 1 | F206: 0% | G206: 1 | H206: EA | I206: 1.37 | J206: 1.37 | K206: $53.48 | L206: $73.53 | M206: $2,574.00 | N206: $2,574.00 | O206: $2,648
A207: 94 | B207: P1 | C207: P1 | D207: (22 GA. x 1-1/2" Wide x 2'-6" Long) Seismic Strap for Water Heater | E207: 2 | F207: 0% | G207: 2 | H207: EA | I207: 0.14 | J207: 0.29 | K207: $53.48 | L207: $15.33 | M207: $37.83 | N207: $75.66 | O207: $91
A208: 95 | B208: P1 | C208: P1 | D208: Expansion Tank (ET-1) No Details Found. | E208: 1 | F208: 0% | G208: 1 | H208: EA | I208: 0.94 | J208: 0.94 | K208: $53.48 | L208: $50.27 | M208: $248.16 | N208: $248.16 | O208: $298
A209: 96 | B209: P1 | C209: P1 | D209: (2'-0" x 2'-0") Pan for Water Heater | E209: 1 | F209: 0% | G209: =E209+(E209*F209) -> 1 | H209: EA | I209: 0.33 | J209: 0.33 | K209: $53.48 | L209: $17.55 | M209: $86.63 | N209: $86.63 | O209: $104
A210: =IF(H210<>"",1+MAX(A196:A209),"") -> 97 | B210: P1 | C210: P1 | D210: H-20 Rated Cast Iron Cover for Grease Interceptor | E210: 2 | F210: 0% | G210: 2 | H210: EA | I210: 1.29 | J210: 2.58 | K210: $53.48 | L210: $138.05 | M210: $340.73 | N210: $681.45 | O210: $819
A211: 98 | B211: P1 | C211: P1 | D211: Cast Iron (12" x 12") Grate for Floor Sink (FS-1) | E211: 3 | F211: 0% | G211: 3 | H211: EA | I211: 0.63 | J211: 1.88 | K211: $53.48 | L211: $100.28 | M211: $165.00 | N211: $495.00 | O211: $595
A212: 99 | B212: P1 | C212: P1 | D212: Access Panel for Trap Primer (TP-1) | E212: 2 | F212: 0% | G212: 2 | H212: EA | I212: 0.93 | J212: 1.85 | K212: $53.48 | L212: $98.94 | M212: $244.20 | N212: $488.40 | O212: $587
A213: 100 | B213: P1 | C213: P1 | D213: (5") Grate with 2" Outlet for Floor Drain (FD-1) | E213: 2 | F213: 0% | G213: =E213+(E213*F213) -> 2 | H213: EA | I213: 0.43 | J213: 0.85 | K213: $53.48 | L213: $45.46 | M213: $112.20 | N213: $224.40 | O213: $270
A214: 101 | B214: P1 | C214: P1 | D214: (8-1/2") Round Traffic Duty Cast Iron Bar Grate for Floor Drain (FD-1) | E214: 2 | F214: 0% | G214: 2 | H214: EA | I214: 0.44 | J214: 0.88 | K214: $53.48 | L214: $47.03 | M214: $116.08 | N214: $232.16 | O214: $279
A215: 102 | B215: P1 | C215: P1 | D215: Removeable PVC HUB Drain Cover for Floor Drain (FD-1) | E215: 2 | F215: 0% | G215: 2 | H215: EA | I215: 0.38 | J215: 0.76 | K215: $53.48 | L215: $40.46 | M215: $99.87 | N215: $199.74 | O215: $240
A216: 103 | B216: P1 | C216: P1 | D216: (2" Dia.) Vent Through Roof (VTR) | E216: 4 | F216: 0% | G216: 4 | H216: EA | I216: 0.70 | J216: 2.80 | K216: $53.48 | L216: $149.74 | M216: $184.80 | N216: $739.20 | O216: $889
A217: 104 | B217: P1 | C217: P1 | D217: (3" Dia.) Vent Through Roof (VTR) | E217: 1 | F217: 0% | G217: 1 | H217: EA | I217: 1.05 | J217: 1.05 | K217: $53.48 | L217: $56.15 | M217: $277.20 | N217: $277.20 | O217: $333
D219: Plumbing Fixtures
A220: 105 | B220: P1 | C220: P1 | D220: 3- Compartment Sink (S-1) Remarks: JOHN BOOS-E3S8-18-12T 18 W/ KROWNE FAUCET - 17-109WL | E220: 1 | F220: 0% | G220: =E220+(E220*F220) -> 1 | H220: EA | I220: 8.75 | J220: =I220*G220 -> 8.75 | K220: $53.48 | L220: =K220*J220 -> $467.95 | M220: $2,310.00 | N220: =M220*G220 -> $2,310.00 | O220: =L220+N220 -> $2,778
A221: 106 | B221: P1 | C221: P1 | D221: Prep Sink (S-2) Remarks: JOHN BOOS-41PB16204-1D24L-W/ COMPONENT FAUCET - KL54-8110-SE1 WALL MOUNT, 10" SPOUT | E221: 1 | F221: 0% | G221: 1 | H221: EA | I221: 6.00 | J221: 6.00 | K221: $53.48 | L221: $320.88 | M221: $1,584.00 | N221: $1,584.00 | O221: $1,905
A222: 107 | B222: P1 | C222: P1 | D222: Hand Sink w/ 6" L & R Stainless Steel Splash Guards (HS-1) REMARKS: KROWNE METAL - HS-33 | E222: 2 | F222: 0% | G222: 2 | H222: EA | I222: 4.93 | J222: 9.85 | K222: $53.48 | L222: $526.78 | M222: $1,300.20 | N222: $2,600.40 | O222: $3,127
A223: 108 | B223: P1 | C223: P1 | D223: Grease Interceptor (GI-1) REMARKS: GB-250-B 75 GPM, 4" INLET/ OUTLET | E223: 1 | F223: 0% | G223: 1 | H223: EA | I223: 17.50 | J223: 17.50 | K223: $53.48 | L223: $935.90 | M223: $4,620.00 | N223: $4,620.00 | O223: $5,556
A224: 109 | B224: P1 | C224: P1 | D224: Floor Sink (FS-1) | E224: 3 | F224: 0% | G224: 3 | H224: EA | I224: 5.38 | J224: 16.13 | K224: $53.48 | L224: $862.37 | M224: $1,419.00 | N224: $4,257.00 | O224: $5,119
A225: 110 | B225: P1 | C225: P1 | D225: Trap Primer (TP-1) | E225: 2 | F225: 0% | G225: 2 | H225: EA | I225: 0.40 | J225: 0.80 | K225: $53.48 | L225: $42.60 | M225: $105.15 | N225: $210.30 | O225: $253
A226: 111 | B226: P1 | C226: P1 | D226: Mop Sink w/ Stainless Steel Splash Guard (MS-1) REMARKS: FLORESTONE - MSR-2424 AMERICAN STANDARD WALL MOUNT 8344.212 EXPOSED YOKE UTILITY FAUCET | E226: 1 | F226: 0% | G226: 1 | H226: EA | I226: 4.38 | J226: 4.38 | K226: $53.48 | L226: $233.98 | M226: $1,155.00 | N226: $1,155.00 | O226: $1,389
A227: 112 | B227: P1 | C227: P1 | D227: Water Heater (WH-1) REMARKS: GE 40 GALLON LOWBOY ELECTRIC WATER HEATER, SIDE PORT, 240 V (GE40L08BSM) | E227: 1 | F227: 0% | G227: 1 | H227: EA | I227: 4.28 | J227: 4.28 | K227: $53.48 | L227: $228.96 | M227: $1,130.25 | N227: $1,130.25 | O227: $1,359
A228: 113 | B228: P1 | C228: P1 | D228: Floor Drain (FD-1) REMARKS: SMITH 2110 | E228: 2 | F228: 0% | G228: =E228+(E228*F228) -> 2 | H228: EA | I228: 1.13 | J228: 2.25 | K228: $53.48 | L228: $120.33 | M228: $297.00 | N228: $594.00 | O228: $714
A229: 114 | B229: P1 | C229: P1 | D229: Hose Bib (HB-1) Assume General Price. No Details. | E229: 1 | F229: 0% | G229: 1 | H229: EA | I229: 0.33 | J229: 0.33 | K229: $53.48 | L229: $17.38 | M229: $85.80 | N229: $85.80 | O229: $103
A231: 115 | B231: - | C231: - | D231: Additional Cost Based on Plumbing Work Area | E231: 390 | F231: 5% | G231: =E231+(E231*F231) -> 410 | H231: SF | I231: 0.02 | J231: =I231*G231 -> 7.17 | K231: $53.48 | L231: =K231*J231 -> $383.25 | M231: $2.80 | N231: =M231*G231 -> $1,146.60 | O231: =L231+N231 -> $1,530
D233: SUBTOTAL | L233: =IF(H233<>"",I233*K233,"") ->  | P233: =SUM(O166:O231) -> $54,504
C234: 260000 | D234: DIVISION 26 — ELECTRICAL | L234: =IF(H234<>"",0.4*N234,"") -> 
D236: Power Items | L236: =IF(H236<>"",I236*K236,"") -> 
D238: Receptacles
A239: 116 | B239: E1 | C239: E1 | D239: (20 AMP/125 V/2 Pole/3 W/ NEMA 5-20R) GFI Duplex Receptacle | E239: 2 | F239: 0% | G239: =E239+(E239*F239) -> 2 | H239: EA | I239: 0.68 | J239: =I239*G239 -> 1.35 | K239: $53.48 | L239: =K239*J239 -> $72.20 | M239: $108.00 | N239: =M239*G239 -> $216.00 | O239: =L239+N239 -> $288
A240: 117 | B240: E1 | C240: E1 | D240: (20 AMP/125 V/2 Pole/3 W/ NEMA 5-20R) Duplex Receptacle | E240: 3 | F240: 0% | G240: =E240+(E240*F240) -> 3 | H240: EA | I240: 0.50 | J240: 1.50 | K240: $53.48 | L240: $80.22 | M240: $80.00 | N240: $240.00 | O240: $320
D242: Switches
A243: 118 | B243: E1 | C243: E1 | D243: (240 V/60AMP/1 Phase) Non- Fused Disconnect Switch | E243: 2 | F243: 0% | G243: =E243+(E243*F243) -> 2 | H243: EA | I243: 1.38 | J243: =I243*G243 -> 2.75 | K243: $53.48 | L243: =K243*J243 -> $147.07 | M243: $220.00 | N243: =M243*G243 -> $440.00 | O243: =L243+N243 -> $587
D245: Breaker
A246: 119 | B246: E1 | C246: E1 | D246: (20 AMP, 1 Pole) Breaker | E246: 1 | F246: 0% | G246: =E246+(E246*F246) -> 1 | H246: EA | I246: 0.38 | J246: =I246*G246 -> 0.38 | K246: $53.48 | L246: =K246*J246 -> $20.06 | M246: $60.00 | N246: =M246*G246 -> $60.00 | O246: =L246+N246 -> $80
A247: 120 | B247: E1 | C247: E1 | D247: (60 AMP, 2 Pole) Breaker | E247: 2 | F247: 0% | G247: =E247+(E247*F247) -> 2 | H247: EA | I247: 1.33 | J247: =I247*G247 -> 2.65 | K247: $53.48 | L247: =K247*J247 -> $141.72 | M247: $212.00 | N247: =M247*G247 -> $424.00 | O247: =L247+N247 -> $566
D249: Misc.
A250: 121 | B250: E1 | C250: E1 | D250: Connection to Existing Lighting Circuit | E250: 2 | F250: 0% | G250: =E250+(E250*F250) -> 2 | H250: EA | I250: 1.13 | J250: =I250*G250 -> 2.25 | K250: $53.48 | L250: =K250*J250 -> $120.33 | M250: 0 | N250: =M250*G250 -> 0 | O250: =L250+N250 -> $120
D252: Wiring & Conduits | L252: =IF(H252<>"",I252*K252,"") -> 
D254: Conduit Material is E.M.T. and Wires are Copper Type THHN U.N.O.
D256: For Power Items
A257: 122 | B257: E1 | C257: E1 | D257: (3/4" Dia.) Conduit | E257: =10*16 -> 160 | F257: 5% | G257: =E257+(E257*F257) -> 168 | H257: LF | I257: 0.03 | J257: =I257*G257 -> 5.64 | K257: $53.48 | L257: =K257*J257 -> $301.88 | M257: $2.02 | N257: =M257*G257 -> $338.69 | O257: =L257+N257 -> $641
A258: 123 | B258: E1 | C258: E1 | D258: (3) #12 Wire | E258: =E257*3 -> 480 | F258: 5% | G258: 504 | H258: LF | I258: 0.01 | J258: 6.05 | K258: $53.48 | L258: $323.45 | M258: $0.72 | N258: $362.88 | O258: $686
A260: 124 | B260: - | C260: - | D260: Additional Cost Based on Electrical Work Area | E260: 250 | F260: 5% | G260: =E260+(E260*F260) -> 263 | H260: SF | I260: 0.01 | J260: =I260*G260 -> 3.48 | K260: $53.48 | L260: =K260*J260 -> $186.01 | M260: $2.12 | N260: =M260*G260 -> $556.50 | O260: =L260+N260 -> $743
D262: SUBTOTAL | L262: =IF(H262<>"",I262*K262,"") ->  | P262: =SUM(O239:O260) -> $4,031
C263: 310000 | D263: DIVISION 31 — EARTH WORK | L263: =IF(H263<>"",0.4*N263,"") -> 
D265: Excavation
A266: 125 | B266: - | C266: - | D266: Excavation for Waste Pipes | E266: =178*1*1.5/27 -> 10 | F266: 5% | G266: =E266+(E266*F266) -> 10 | H266: CY | I266: 0.88 | J266: =I266*G266 -> 9.09 | K266: $53.48 | L266: =K266*J266 -> $485.89 | M266: 0 | N266: =M266*G266 -> 0 | O266: =L266+N266 -> $486
A267: 126 | B267: - | C267: - | D267: Excavation for Grease Interceptor | E267: =2.5*3.25*4/27 -> 1 | F267: 5% | G267: =E267+(E267*F267) -> 1 | H267: CY | I267: 0.88 | J267: 1.11 | K267: $53.48 | L267: $59.14 | M267: 0 | N267: 0 | O267: $59
... 13 more rows

Sheet UJ (hidden)
C2: PROJECT: | D2: 625 PARK AVE PHASE 1B
C3: ADDRESS: | D3: 625 PARK AVENUE,
D4: NEW YORK, NY-10065.
H6: DATE | I6: =TODAY() -> 2026-07-28
A7: ITEM # | B7: CSI SEC. | C7: DESCRIPTION | D7: QTY. | E7: WASTE | F7: QTY. W/ WASTE | G7: UNIT | H7: UNIT COST | I7: TRADE COST | L7: Single side areas
C8: SCOPE OF WORK | L8: Dry | M8: Wet
A9: 1 | B9: 09 29 | C9: 2 layered 5/8" thick USG fiberock brand panels for walls and ceilings. | D9: 11,635 | E9: 10% | F9: =D9*(1+E9) -> 12,799 | G9: sf | H9: $4.0 | I9: =H9*F9 -> $51,194 | J9: Type 1+Type 4+Type 6+ceiling | K9: Type 1 | L9: =2520-80 -> 2440 | M9: 280 | N9: =(2440*2+290*2+2345+3830) -> 11635
A10: 2 | B10: 09 29 | C10: 2 layerd 5/8" thick USG fiberock aqua tough brand panels for wall and ceilings in wet areas. | D10: 1,185 | E10: 10% | F10: =D10*(1+E10) -> 1,304 | G10: sf | H10: $4.5 | I10: =H10*F10 -> $5,866 | J10: Type 1+Type 4+Type 6+wet ceiling | K10: Type 2 | L10: =210-80 -> 130 | M10: 80 | N10: =(280*2+325+300) -> 1185
A11: 3 | B11: 09 29 | C11: 2 layered 2 HR rated 5/8" thick USG fiberock brand panels for walls. | D11: 260 | E11: 10% | F11: =D11*(1+E11) -> 286 | G11: sf | H11: $4.5 | I11: =H11*F11 -> $1,287 | J11: Type 2 | K11: Type 3 | N11: =130*2 -> 260
A12: 4 | B12: 09 29 | C12: 2 layered 2 HR rated 5/8" thick USG fiberock aqua tough brand panels for walls in wet areas. | D12: 160 | E12: 10% | F12: 176 | G12: sf | H12: $5.0 | I12: =H12*F12 -> $880 | J12: Type 2 | K12: Type 4 | L12: 290 | N12: =80*2 -> 160
A13: 5 | B13: 09 29 | C13: 3 layered 3 HR rated 5/8" thick USG fiberock brand panels for walls. | D13: 300 | E13: 10% | F13: 330 | G13: sf | H13: $4.0 | I13: =H13*F13 -> $1,320 | J13: Type 7 | K13: Type 5 | L13: 1200 | N13: =150*2 -> 300
A14: 6 | B14: 09 26 | C14: 3/32" thick gypsum veneer plaster skim coat. | D14: 14,740 | E14: 10% | F14: 16,214 | G14: sf | H14: $4.0 | I14: =H14*F14 -> $64,856 | J14: Type 1+Type 2+ Type 4+Type 5+Type 6 +Type 7 | K14: Type 6 | L14: =2670-325 -> 2345 | M14: 325 | N14: =SUM(N9:N13)+L13 -> 14740 | O14: =SUM(L9:M10)*2+L13+SUM(L14:M14)+L15*2+SUM(L17:M17)+L12*2 -> 14740 | P14: =N14-O14 -> 0
A15: 7 | B15: 09 22 16 | C15: 3-5/8" steel studs 20 GA @ 16" O.C. | D15: 5,750 | E15: 10% | F15: 6,325 | G15: sf | H15: $2.5 | I15: =H15*F15 -> $15,813 | J15: Type 1+Type 2+Type 6+Type 7 | K15: Type 7 | L15: 150 | N15: =SUM(L9:M10)+SUM(L14:M15) -> 5750
A16: 8 | B16: 10 22 16 | C16: 1-5/8" steel studs 20 GA @ 12" O.C. | D16: 290 | E16: 10% | F16: 319 | G16: sf | H16: $2.0 | I16: $638 | J16: Type 4 | K16: Type 8 | L16: 20
A17: 8 | B17: 09 22 26 | C17: Ceiling suspension system. | D17: 4,130 | E17: 10% | F17: 4,543 | G17: sf | H17: $3.0 | I17: =H17*F17 -> $13,629 | K17: Ceiling | L17: 3830 | M17: 300 | N17: =SUM(L17:M17) -> 4130
A18: 9 | B18: 07 21 16 | C18: Batt Insulation. | D18: 5,600 | E18: 5% | F18: 5,880 | G18: sf | H18: $2.0 | I18: =H18*F18 -> $11,760 | J18: Type 1+Type 2+ Type 6 | N18: =SUM(L9:M10)+SUM(L14:M14) -> 5600
A19: 10 | B19: 07 21 16 | C19: Batt Insulation type SAFB. | D19: 150 | E19: 10% | F19: 165 | G19: sf | H19: $2.2 | I19: =H19*F19 -> $363 | J19: Type 7 | N19: 150
A21: SUB TOTAL | I21: =SUM(I9:I19) -> $167,605
A22: INSURANCE (3%) | I22: =(3/100)*I21 -> $5,028
A23: TOTAL BASE BID | I23: =SUM(I21:I22) -> $172,633
C25: Exclusions
B26: 1 | C26: Mouldings
B27: 2 | C27: Patch work
B28: 3 | C28: Fixtures
B29: 4 | C29: Electrical work
B30: 5 | C30: Stone and/or tile work
B31: 6 | C31: Wall type 8 [no details on provided on the drawing]

Sheet DETAIL (2) (hidden)
B2: PROJECT: | C2: 625 PARK AVE PHASE 1B
B3: ADDRESS: | C3: 625 PARK AVENUE
C4: NEW YORK, NY 10065
E6: DATE | F6: =TODAY() -> 2026-07-28
A7: ITEM # | B7: DESCRIPTION | C7: UNIT COST | D7: QTY. | E7: UNIT | F7: TRADE COST
B8: SCOPE OF WORK
A9: 1 | B9: 5/8" 2 layered USG fiberock brand panels. | D9: =((2358+277+2077)-644)+3830 -> 7,898 | E9: sf | F9: =C9*D9 -> 0 | G9: Type 1+Type 4+Type 6+ceiling
A10: 2 | B10: 5/8" 2 layered USG fiberock aqua tough brand panels. (Wet area). | D10: =644+292 -> 936 | E10: sf | F10: =C10*D10 -> 0 | G10: Type 1+Type 4+Type 6+wet ceiling | I10: Height 9'6"
A11: 3 | B11: 2 HR rated 5/8" 2 layered USG fiberock brand panels. | D11: =206-78 -> 128 | E11: sf | F11: 0 | G11: Type 2 | I11: For Doors & Cabinets 1'3"
A12: 4 | B12: 2 HR rated 5/8" 2 layered USG fiberock aqua tough brand panels. (Wet area). | D12: 78 | E12: sf | F12: 0 | G12: Type 2
A13: 5 | B13: 3 HR rated 5/8" 3 layered USG fiberock brand panels. | D13: 148 | E13: sf | F13: 0 | G13: Type 7
A14: 6 | B14: 3/32" thick gypsum veneer plaster skim coat. | D14: =2538+206+277+1343+2077+148 -> 6,589 | E14: sf | F14: 0 | G14: Type 1+Type 2+ Type 4+Type 5+Type 6 +Type 7
A15: 7 | B15: 3 5/8" steel studs 20 GA @ 16" O.C. | D15: 4,968 | E15: sf | F15: 0 | G15: Type 1+Type 2+Type 6+Type 7
A16: 8 | B16: 1 5/8" steel studs 20 GA @ 12" O.C. | D16: 277 | E16: sf | F16: 0 | G16: Type 4
A17: 9 | B17: Batt sound Insulation. | D17: =2538+206+2077 -> 4,821 | E17: sf | F17: 0 | G17: Type 1+Type 2+ Type 6
A18: 10 | B18: Batt sound Insulation type SAFB. | D18: 148 | E18: sf | F18: 0 | G18: Type 7 | H18: QTY Details
H19: Type 1 | I19: 2538 | J19: 2520
A20: TOTAL | F20: =SUM(F9:F18) -> 0 | H20: Type 2 | I20: 205 | J20: 206
B21: Exclusions | H21: Type 3 | I21: N/A
A22: 1 | B22: Mouldings | H22: Type 4 | I22: 277 | J22: 290
A23: 2 | B23: Patch work | H23: Type 5 | I23: 1342 | J23: 1200
A24: 3 | B24: Fixtures | H24: Type 6 | I24: 2077 | J24: 2670
A25: 4 | B25: Electrical work | H25: Type 7 | I25: 148 | J25: 150
A26: 5 | B26: Stone and/or tile work | H26: Type 8 | I26: 22 | J26: 20 | K26: No details given
A27: 6 | H27: Ceiling | I27: 3830
H28: Wet Ceiling | I28: 292
B31: DETAILS
B32: Type 1- Interior Partition | G32: Type 2- 2HR rated Interior Partition | H32: Type
B33: 2 layers 5/8' USG fiberock brand panels (Fiberock aqua tough brand at all wet areas) Glue second layer, finished with 3-32" thick gypsum veneer plaster skim coat. 3 5/8" Stl studs 20 GA @16" O.C with Batt insulation. 2 layers 5/8" USG fiberock brand panels(Fiberock aqua tough brand at all wet areas finished 3-32" thick gypsum veneer plaster skim coat | G33: 2 layers 5/8' USG fiberock brand panels (Fiberock aqua tough brand at all wet areas) Glue second layer, finished with 3-32" thick gypsum veneer plaster skim coat. 3 5/8" Stl studs 20 GA @16" O.C with Batt insulation. 2 layers 5/8" USG fiberock brand panels(Fiberock aqua tough brand at all wet areas finished 3-32" thick gypsum veneer plaster skim coat
B35: TYPE 3 Interior partition at chase | G35: TYPE 4 Pocket door partition
B36: 2 layer 5/8" USG fiberock brand panels ( Fiberock aqua tough brand at all wet areas ) Glue second layer fill batt insulation, finished with 3/32" thick gypsum veneer plaster skim coat. 20 Ga 2-1/2" mtl studs @ 16 O.C. with batt insulation. Pipe chase space. 2 layers 5/8" USG fiberock brand panels (Fiberock aqua tough brand at all wet areas finished with 3/32" thick gypsum veneer plaster skim coat. | G36: 2 Layers 5/8" USG fiberock brand panels (Fiberock Aqua tough brand at all wet areas) Glue second layer, Finished with 3/32" thick gypsum veneer plaster skim coat. 1 5/8" 20 Ga stl studs @12 O.C. 2 layer 5/8" USG fiberock brand panels (fiberock aqua tough brand at wet areas) finished with 3/32" thick gypsum veneer plaster skim coat.
B38: TYPE 5 Existing wall skim coat | G38: TYPE 6 EXISTING WALL- Furring
B39: Apply 3/32" Thick gypsum veneer skim coat. Fill and smooth all imperfections | G39: 3 5/8" 20 Ga stl studs @ 16 O.C. 2 layers 5/8" USG fiberock brand panels dimensions from exterior wall to be varified with architect. Fill with Batt insulation, Finished with 3/32" Thick Gypsum veneer plaster skim coat
B40: TYPE 7 Interior Partition- 3 Hr rated
B41: 3 layer 5/8" USG fiberock brand panels, glue third layer finished with 3/32" thick gypsum veneer plaster skim coat. 3 5/8" stl studs 20 GA @16"O.C. Batt insulation Type SAFB. 3 layer 5/8" USG fiberock brand panels, glue third layer finished with 3-32" thick gypsum veneer plaster skim coat
